[Event "*** Titled Tuesday Blitz"]
[Site "Chess.com"]
[Date "2020.05.12"]
[Round "10"]
[White "attack2mateU"]
[Black "etesungam"]
[Result "1-0"]
[WhiteElo "2637"]
[BlackElo "2464"]
[TimeControl "180+1"]
[EndTime "11:53:09 PDT"]
[Termination "attack2mateU won by checkmate"]

1. e4 {[%clk 0:03:00.9]} 1... e5 {[%clk 0:02:59.7]} 2. Nf3 {[%clk 0:03:01]} 2...
Nc6 {[%clk 0:03:00]} 3. Bb5 {[%clk 0:03:00.8]} 3... Nf6 {[%clk 0:02:59.1]} 4.
O-O {[%clk 0:02:59.8]} 4... Nxe4 {[%clk 0:02:58.7]} 5. Re1 {[%clk 0:02:59.6]}
5... Nd6 {[%clk 0:02:41.7]} 6. Nxe5 {[%clk 0:02:59.9]} 6... Be7 {[%clk
0:02:40.9]} 7. Bf1 {[%clk 0:02:59.1]} 7... O-O {[%clk 0:02:38.9]} 8. d4 {[%clk
0:02:57]} 8... Nxe5 {[%clk 0:02:38.3]} 9. dxe5 {[%clk 0:02:56.2]} 9... Nf5
{[%clk 0:02:32]} 10. Nc3 {[%clk 0:02:52.9]} 10... d6 {[%clk 0:02:31.7]} 11. Bf4
{[%clk 0:02:33]} 11... Be6 {[%clk 0:02:10]} 12. Nd5 {[%clk 0:02:23.5]} 12...
dxe5 {[%clk 0:02:01.8]} 13. Nxe7+ {[%clk 0:02:20.4]} 13... Qxe7 {[%clk
0:02:02.1]} 14. Bxe5 {[%clk 0:02:20]} 14... Rad8 {[%clk 0:01:53.4]} 15. Qf3
{[%clk 0:02:19.2]} 15... Qg5 {[%clk 0:01:44.2]} 16. Qxb7 {[%clk 0:01:43.8]}
16... Bd5 {[%clk 0:01:39.9]} 17. Qxa7 {[%clk 0:01:43.2]} 17... h5 {[%clk
0:01:21.6]} 18. Rad1 {[%clk 0:01:35.5]} 18... h4 {[%clk 0:01:15.9]} 19. h3
{[%clk 0:01:32.1]} 19... c6 {[%clk 0:00:50.9]} 20. c4 {[%clk 0:01:23.9]} 20...
Ra8 {[%clk 0:00:50.9]} 21. Qc5 {[%clk 0:01:21.6]} 21... Be6 {[%clk 0:00:50.5]}
22. a3 {[%clk 0:01:00.7]} 22... Ra6 {[%clk 0:00:45.6]} 23. Re4 {[%clk
0:00:51.7]} 23... Rfa8 {[%clk 0:00:43.4]} 24. Rg4 {[%clk 0:00:48]} 24... Qh5
{[%clk 0:00:43.3]} 25. Qb4 {[%clk 0:00:27.4]} 25... f6 {[%clk 0:00:32.8]} 26.
Bxf6 {[%clk 0:00:25.1]} 26... Kf7 {[%clk 0:00:32.3]} 27. Rxg7+ {[%clk 0:00:17]}
27... Kxf6 {[%clk 0:00:29.3]} 28. Qc3+ {[%clk 0:00:17.3]} 28... Nd4 {[%clk
0:00:23.8]} 29. Qxd4+ {[%clk 0:00:17.3]} 29... Kf5 {[%clk 0:00:24.1]} 30. Bd3#
{[%clk 0:00:17]} 1-0

[Event "*** Titled Tuesday Blitz"]
[Site "Chess.com"]
[Date "2020.05.12"]
[Round "10"]
[White "Azoulas1"]
[Black "Juanovic"]
[Result "1-0"]
[WhiteElo "1950"]
[BlackElo "2162"]
[TimeControl "180+1"]
[EndTime "11:53:12 PDT"]
[Termination "Azoulas1 won by resignation"]

1. e4 {[%clk 0:03:00.9]} 1... c5 {[%clk 0:02:59.3]} 2. Nf3 {[%clk 0:03:00.2]}
2... d6 {[%clk 0:02:58.4]} 3. d4 {[%clk 0:03:00.1]} 3... cxd4 {[%clk 0:02:58.8]}
4. Nxd4 {[%clk 0:03:00.2]} 4... Nf6 {[%clk 0:02:59.2]} 5. Nc3 {[%clk 0:02:59.6]}
5... g6 {[%clk 0:02:59.7]} 6. f3 {[%clk 0:02:56.6]} 6... Bg7 {[%clk 0:02:59.9]}
7. Be3 {[%clk 0:02:55.7]} 7... Nc6 {[%clk 0:03:00.4]} 8. Qd2 {[%clk 0:02:53.7]}
8... O-O {[%clk 0:02:59.4]} 9. O-O-O {[%clk 0:02:53.3]} 9... d5 {[%clk
0:02:59.7]} 10. exd5 {[%clk 0:02:49.8]} 10... Nxd5 {[%clk 0:02:58.7]} 11. Nxc6
{[%clk 0:02:50.1]} 11... bxc6 {[%clk 0:02:58.5]} 12. Bd4 {[%clk 0:02:50.2]}
12... Nxc3 {[%clk 0:02:52.3]} 13. Qxc3 {[%clk 0:02:49.5]} 13... Bxd4 {[%clk
0:02:51.4]} 14. Rxd4 {[%clk 0:02:47.8]} 14... Qb6 {[%clk 0:02:50.5]} 15. Bc4
{[%clk 0:02:44.1]} 15... Rb8 {[%clk 0:02:41.9]} 16. h4 {[%clk 0:02:42.7]} 16...
e5 {[%clk 0:02:40.4]} 17. Re4 {[%clk 0:02:39.4]} 17... Re8 {[%clk 0:02:30.3]}
18. h5 {[%clk 0:02:37.5]} 18... Bf5 {[%clk 0:02:26.8]} 19. hxg6 {[%clk
0:02:33.1]} 19... Bxg6 {[%clk 0:02:26.4]} 20. Rxe5 {[%clk 0:02:31]} 20... Rxe5
{[%clk 0:02:21]} 21. Qxe5 {[%clk 0:02:29.8]} 21... Rd8 {[%clk 0:02:19.8]} 22.
Bb3 {[%clk 0:02:26.7]} 22... Qf2 {[%clk 0:02:19.3]} 23. Qe1 {[%clk 0:01:59.9]}
23... Qxg2 {[%clk 0:02:17.4]} 24. Rg1 {[%clk 0:01:59.5]} 24... Qxf3 {[%clk
0:02:16.2]} 25. Qe7 {[%clk 0:01:58.6]} 25... Qf4+ {[%clk 0:01:55.4]} 26. Kb1
{[%clk 0:01:56.2]} 26... Qd6 {[%clk 0:01:56]} 27. Qxf7+ {[%clk 0:01:40.9]} 27...
Kh8 {[%clk 0:01:55.7]} 28. Qf1 {[%clk 0:01:38.9]} 28... Rf8 {[%clk 0:01:50.4]}
29. Qc1 {[%clk 0:01:37.3]} 29... Qf4 {[%clk 0:01:48.6]} 30. Qd1 {[%clk
0:01:28.8]} 30... Qf2 {[%clk 0:01:43.5]} 31. a3 {[%clk 0:01:25.5]} 31... c5
{[%clk 0:01:39]} 32. Ka2 {[%clk 0:01:19.7]} 32... Qd4 {[%clk 0:01:38]} 33. Qxd4+
{[%clk 0:01:09.8]} 33... cxd4 {[%clk 0:01:38]} 34. Rd1 {[%clk 0:01:06.7]} 34...
Rf4 {[%clk 0:01:37.8]} 35. Bc4 {[%clk 0:01:01.2]} 35... h5 {[%clk 0:01:36.5]}
36. Bd3 {[%clk 0:01:00.2]} 36... Kg7 {[%clk 0:01:27.2]} 37. Rg1 {[%clk
0:00:55.2]} 37... Rg4 {[%clk 0:01:26.6]} 38. Rh1 {[%clk 0:00:49.6]} 38... Bxd3
{[%clk 0:01:24.6]} 39. cxd3 {[%clk 0:00:49.1]} 39... Kg6 {[%clk 0:01:25.5]} 40.
Kb3 {[%clk 0:00:47.3]} 40... Kg5 {[%clk 0:01:22.6]} 41. Kc4 {[%clk 0:00:47.1]}
41... h4 {[%clk 0:01:22.2]} 42. b4 {[%clk 0:00:45.1]} 42... Rf4 {[%clk
0:01:11.7]} 43. a4 {[%clk 0:00:43.3]} 43... Kg4 {[%clk 0:01:11.7]} 44. b5 {[%clk
0:00:42.6]} 44... Kg3 {[%clk 0:01:11.4]} 45. a5 {[%clk 0:00:41.2]} 45... h3
{[%clk 0:01:09.9]} 46. Rb1 {[%clk 0:00:40.6]} 46... Kg2 {[%clk 0:01:09]} 47. b6
{[%clk 0:00:40.3]} 47... axb6 {[%clk 0:01:08.7]} 48. axb6 {[%clk 0:00:39.4]}
48... Rf1 {[%clk 0:01:09.2]} 49. Rxf1 {[%clk 0:00:34.8]} 49... Kxf1 {[%clk
0:01:09.5]} 50. b7 {[%clk 0:00:35]} 50... h2 {[%clk 0:01:09.9]} 51. b8=Q {[%clk
0:00:33.9]} 51... h1=Q {[%clk 0:01:10]} 52. Qb1+ {[%clk 0:00:33.2]} 1-0

[Event "*** Titled Tuesday Blitz"]
[Site "Chess.com"]
[Date "2020.05.12"]
[Round "10"]
[White "kleinebeer98"]
[Black "TigrVShlyape"]
[Result "1-0"]
[WhiteElo "2690"]
[BlackElo "2815"]
[TimeControl "180+1"]
[EndTime "11:53:13 PDT"]
[Termination "kleinebeer98 won by resignation"]

1. e4 {[%clk 0:03:00.9]} 1... c5 {[%clk 0:02:58]} 2. Nf3 {[%clk 0:03:00.6]} 2...
e6 {[%clk 0:02:56.7]} 3. d4 {[%clk 0:02:59.9]} 3... cxd4 {[%clk 0:02:55.6]} 4.
Nxd4 {[%clk 0:03:00.8]} 4... a6 {[%clk 0:02:55.5]} 5. Qd3 {[%clk 0:03:01.2]}
5... Nf6 {[%clk 0:02:51.2]} 6. Be2 {[%clk 0:03:00.2]} 6... d6 {[%clk 0:02:49.6]}
7. Nc3 {[%clk 0:02:58.1]} 7... b5 {[%clk 0:02:47.9]} 8. O-O {[%clk 0:02:45.9]}
8... Bb7 {[%clk 0:02:47.7]} 9. a3 {[%clk 0:02:46.1]} 9... Nbd7 {[%clk
0:02:47.2]} 10. Qg3 {[%clk 0:02:38.7]} 10... h5 {[%clk 0:02:41.4]} 11. Bg5
{[%clk 0:02:35.6]} 11... Qb6 {[%clk 0:02:25.2]} 12. Rad1 {[%clk 0:02:23.4]}
12... Be7 {[%clk 0:02:10.9]} 13. Qh4 {[%clk 0:02:06.7]} 13... Rc8 {[%clk
0:02:07.9]} 14. Kh1 {[%clk 0:02:05]} 14... g6 {[%clk 0:01:58.8]} 15. f4 {[%clk
0:02:01.8]} 15... Rg8 {[%clk 0:01:33.1]} 16. e5 {[%clk 0:01:53.3]} 16... Rxc3
{[%clk 0:00:31.2]} 17. exf6 {[%clk 0:01:49.2]} 17... Re3 {[%clk 0:00:31.3]} 18.
fxe7 {[%clk 0:01:40.4]} 18... f6 {[%clk 0:00:28]} 19. Bxf6 {[%clk 0:01:33]}
19... e5 {[%clk 0:00:28.2]} 20. fxe5 {[%clk 0:01:25.4]} 20... dxe5 {[%clk
0:00:28.1]} 21. Bf3 {[%clk 0:00:49.3]} 21... Bxf3 {[%clk 0:00:27]} 22. Nxf3
{[%clk 0:00:42.9]} 22... Nxf6 {[%clk 0:00:24.6]} 23. Nxe5 {[%clk 0:00:37.7]}
23... g5 {[%clk 0:00:16.4]} 24. Rxf6 {[%clk 0:00:24.7]} 24... Qxf6 {[%clk
0:00:15.6]} 25. Qd4 {[%clk 0:00:13.4]} 25... Qxe7 {[%clk 0:00:14.7]} 26. Qxe3
{[%clk 0:00:13.1]} 1-0

[Event "*** Titled Tuesday Blitz"]
[Site "Chess.com"]
[Date "2020.05.12"]
[Round "10"]
[White "ZEN-22"]
[Black "Mbneu"]
[Result "1-0"]
[WhiteElo "2422"]
[BlackElo "2265"]
[TimeControl "180+1"]
[EndTime "11:53:15 PDT"]
[Termination "ZEN-22 won by resignation"]

1. d4 {[%clk 0:03:00.9]} 1... Nf6 {[%clk 0:02:59.1]} 2. Bg5 {[%clk 0:03:01.1]}
2... c5 {[%clk 0:02:58.2]} 3. d5 {[%clk 0:03:00.4]} 3... e6 {[%clk 0:02:57.5]}
4. Nc3 {[%clk 0:02:58]} 4... h6 {[%clk 0:02:55.1]} 5. Bh4 {[%clk 0:02:57.2]}
5... d6 {[%clk 0:02:44.2]} 6. e4 {[%clk 0:02:56.1]} 6... e5 {[%clk 0:02:44.1]}
7. f3 {[%clk 0:02:31.9]} 7... Be7 {[%clk 0:02:42.5]} 8. g4 {[%clk 0:02:31.6]}
8... Nxd5 {[%clk 0:02:39.9]} 9. Bxe7 {[%clk 0:02:30.5]} 9... Nxe7 {[%clk
0:02:40.2]} 10. Bb5+ {[%clk 0:02:29.9]} 10... Nbc6 {[%clk 0:02:37.6]} 11. Qd2
{[%clk 0:02:30.2]} 11... a6 {[%clk 0:02:03.4]} 12. Bxc6+ {[%clk 0:02:26.6]}
12... Nxc6 {[%clk 0:02:03.9]} 13. O-O-O {[%clk 0:02:27.2]} 13... Nd4 {[%clk
0:02:03.6]} 14. Nd5 {[%clk 0:02:25.8]} 14... Be6 {[%clk 0:02:02.6]} 15. Kb1
{[%clk 0:02:12.7]} 15... Bxd5 {[%clk 0:02:01.5]} 16. exd5 {[%clk 0:02:11]} 16...
O-O {[%clk 0:01:58.2]} 17. c3 {[%clk 0:02:11.2]} 17... Nb5 {[%clk 0:01:56.2]}
18. f4 {[%clk 0:02:11.6]} 18... exf4 {[%clk 0:01:45.1]} 19. Qxf4 {[%clk
0:02:10.6]} 19... Qg5 {[%clk 0:01:45.8]} 20. Qxg5 {[%clk 0:02:08.1]} 20... hxg5
{[%clk 0:01:45.3]} 21. Nf3 {[%clk 0:02:09]} 21... f6 {[%clk 0:01:44.5]} 22. h4
{[%clk 0:02:09.4]} 22... gxh4 {[%clk 0:01:41.9]} 23. Nxh4 {[%clk 0:02:08.2]}
23... Kf7 {[%clk 0:01:37.4]} 24. a4 {[%clk 0:02:03.7]} 24... Nc7 {[%clk
0:01:35.8]} 25. Nf5 {[%clk 0:02:04.6]} 25... Rad8 {[%clk 0:01:26.2]} 26. Rh7
{[%clk 0:02:03.4]} 26... Rg8 {[%clk 0:01:24.3]} 27. a5 {[%clk 0:01:56.2]} 27...
Rd7 {[%clk 0:01:22.5]} 28. c4 {[%clk 0:01:53.3]} 28... Kg6 {[%clk 0:01:20.5]}
29. Rdh1 {[%clk 0:01:51.6]} 29... Ne8 {[%clk 0:01:16.9]} 30. R1h5 {[%clk
0:01:39.3]} 30... Nc7 {[%clk 0:01:10.7]} 31. Kc2 {[%clk 0:01:32.3]} 31... Re8
{[%clk 0:01:08.3]} 32. Kd3 {[%clk 0:01:23]} 32... Re1 {[%clk 0:01:05.1]} 33.
Nh4+ {[%clk 0:01:18.8]} 33... Kf7 {[%clk 0:01:04.1]} 34. g5 {[%clk 0:01:18.9]}
34... fxg5 {[%clk 0:01:02.3]} 35. Nf3 {[%clk 0:01:18.7]} 35... Rd1+ {[%clk
0:00:56.8]} 36. Kc2 {[%clk 0:01:12.6]} 36... Rf1 {[%clk 0:00:56.1]} 37. Nxg5+
{[%clk 0:01:12.2]} 37... Kg6 {[%clk 0:00:55.6]} 38. Ne4 {[%clk 0:01:11]} 38...
Rf5 {[%clk 0:00:54.4]} 39. R5h6+ {[%clk 0:01:01.7]} 39... gxh6 {[%clk
0:00:53.5]} 40. Rxd7 {[%clk 0:01:02.6]} 40... Ne8 {[%clk 0:00:52.9]} 41. Nxd6
{[%clk 0:01:01.9]} 41... Nxd6 {[%clk 0:00:52.6]} 42. Rxd6+ {[%clk 0:01:01]}
42... Rf6 {[%clk 0:00:52.1]} 43. Rxf6+ {[%clk 0:00:52.2]} 43... Kxf6 {[%clk
0:00:52.3]} 44. Kd3 {[%clk 0:00:53.1]} 44... Ke5 {[%clk 0:00:52.6]} 45. Ke3
{[%clk 0:00:51.2]} 45... Kd6 {[%clk 0:00:52.7]} 46. Kf4 {[%clk 0:00:50.7]} 46...
Kc7 {[%clk 0:00:53.6]} 47. Kf5 {[%clk 0:00:46.4]} 47... b5 {[%clk 0:00:54.5]}
48. axb6+ {[%clk 0:00:45.3]} 48... Kxb6 {[%clk 0:00:54.2]} 49. Ke6 {[%clk
0:00:44.9]} 49... h5 {[%clk 0:00:52.6]} 50. d6 {[%clk 0:00:44.8]} 50... h4
{[%clk 0:00:52]} 51. d7 {[%clk 0:00:44.9]} 1-0

[Event "*** Titled Tuesday Blitz"]
[Site "Chess.com"]
[Date "2020.05.12"]
[Round "10"]
[White "Colombiano07"]
[Black "Tsyhanchuk_Stanislav"]
[Result "1-0"]
[WhiteElo "2204"]
[BlackElo "2484"]
[TimeControl "180+1"]
[EndTime "11:53:16 PDT"]
[Termination "Colombiano07 won on time"]

1. d4 {[%clk 0:03:00.9]} 1... d5 {[%clk 0:02:59.8]} 2. Nf3 {[%clk 0:02:58.8]}
2... Nf6 {[%clk 0:02:59.1]} 3. e3 {[%clk 0:02:58.4]} 3... c5 {[%clk 0:02:51.4]}
4. Bd3 {[%clk 0:02:58.4]} 4... Nc6 {[%clk 0:02:49.8]} 5. O-O {[%clk 0:02:58.6]}
5... c4 {[%clk 0:02:46.8]} 6. Be2 {[%clk 0:02:58.7]} 6... Bf5 {[%clk 0:02:45.9]}
7. b3 {[%clk 0:02:59]} 7... b5 {[%clk 0:02:44.2]} 8. a4 {[%clk 0:02:59.4]} 8...
a6 {[%clk 0:02:41]} 9. Ne5 {[%clk 0:02:58]} 9... Rc8 {[%clk 0:02:16.6]} 10. axb5
{[%clk 0:02:51.3]} 10... axb5 {[%clk 0:02:16.2]} 11. Nc3 {[%clk 0:02:50.2]}
11... b4 {[%clk 0:02:07.2]} 12. Na4 {[%clk 0:02:49.5]} 12... e6 {[%clk
0:01:38.5]} 13. bxc4 {[%clk 0:02:29.9]} 13... dxc4 {[%clk 0:01:36.2]} 14. Nxc4
{[%clk 0:02:27.8]} 14... Be7 {[%clk 0:01:15.2]} 15. Bb2 {[%clk 0:01:49.5]} 15...
O-O {[%clk 0:01:13.7]} 16. Nc5 {[%clk 0:01:43.9]} 16... Qc7 {[%clk 0:00:49.2]}
17. Bf3 {[%clk 0:01:18]} 17... Rfd8 {[%clk 0:00:38]} 18. Qe2 {[%clk 0:01:17.8]}
18... Bxc5 {[%clk 0:00:29.3]} 19. dxc5 {[%clk 0:01:17.6]} 19... Ne7 {[%clk
0:00:20.2]} 20. Nd6 {[%clk 0:01:17.1]} 20... Rb8 {[%clk 0:00:17.4]} 21. Bd4
{[%clk 0:01:02.2]} 21... Nc6 {[%clk 0:00:13.9]} 22. Bxf6 {[%clk 0:00:58.3]}
22... gxf6 {[%clk 0:00:13.6]} 23. Nxf5 {[%clk 0:00:58.6]} 23... exf5 {[%clk
0:00:14]} 24. Ra6 {[%clk 0:00:55.3]} 24... Ne5 {[%clk 0:00:06.8]} 25. Rxf6
{[%clk 0:00:54]} 25... Qxc5 {[%clk 0:00:06.6]} 26. Rxf5 {[%clk 0:00:54.4]} 26...
Nxf3+ {[%clk 0:00:05.6]} 27. Qxf3 {[%clk 0:00:55.3]} 27... Qe7 {[%clk
0:00:05.3]} 28. h3 {[%clk 0:00:51.5]} 28... Kh8 {[%clk 0:00:05.2]} 29. Rd1
{[%clk 0:00:51.1]} 29... Rf8 {[%clk 0:00:03.9]} 30. Qd5 {[%clk 0:00:49]} 30...
Rb7 {[%clk 0:00:02.7]} 31. Qe5+ {[%clk 0:00:48.7]} 31... Qxe5 {[%clk 0:00:01.8]}
32. Rxe5 {[%clk 0:00:49.6]} 32... Rc8 {[%clk 0:00:02]} 33. Rd2 {[%clk 0:00:49]}
33... b3 {[%clk 0:00:02.1]} 34. cxb3 {[%clk 0:00:48.9]} 34... Rxb3 {[%clk
0:00:03]} 35. Re7 {[%clk 0:00:49.1]} 35... f6 {[%clk 0:00:02.7]} 36. Rdd7 {[%clk
0:00:48.7]} 36... Rb1+ {[%clk 0:00:01.6]} 37. Kh2 {[%clk 0:00:48.6]} 37... Kg8
{[%clk 0:00:01.4]} 38. Rg7+ {[%clk 0:00:48.7]} 38... Kf8 {[%clk 0:00:01]} 39.
Rxh7 {[%clk 0:00:49.6]} 1-0

[Event "*** Titled Tuesday Blitz"]
[Site "Chess.com"]
[Date "2020.05.12"]
[Round "10"]
[White "Kopytkin"]
[Black "RitvarsReimanis"]
[Result "0-1"]
[WhiteElo "2352"]
[BlackElo "2490"]
[TimeControl "180+1"]
[EndTime "11:53:17 PDT"]
[Termination "RitvarsReimanis won on time"]

1. e4 {[%clk 0:03:00.9]} 1... c5 {[%clk 0:02:59.6]} 2. d4 {[%clk 0:03:01.1]}
2... cxd4 {[%clk 0:02:59.4]} 3. c3 {[%clk 0:03:01.5]} 3... Nf6 {[%clk
0:02:59.2]} 4. e5 {[%clk 0:03:01.4]} 4... Nd5 {[%clk 0:02:59.1]} 5. cxd4 {[%clk
0:03:01.9]} 5... d6 {[%clk 0:02:58.9]} 6. Bc4 {[%clk 0:03:02.1]} 6... e6 {[%clk
0:02:58.1]} 7. Nf3 {[%clk 0:03:01.1]} 7... Nc6 {[%clk 0:02:57.7]} 8. O-O {[%clk
0:02:59.5]} 8... Be7 {[%clk 0:02:57.7]} 9. Nc3 {[%clk 0:02:57.8]} 9... Nxc3
{[%clk 0:02:54.3]} 10. bxc3 {[%clk 0:02:58.7]} 10... dxe5 {[%clk 0:02:53.9]} 11.
dxe5 {[%clk 0:02:59.1]} 11... Qxd1 {[%clk 0:02:42]} 12. Rxd1 {[%clk 0:03:00]}
12... Bd7 {[%clk 0:02:42]} 13. Rb1 {[%clk 0:02:58.9]} 13... Na5 {[%clk
0:02:25.8]} 14. Be2 {[%clk 0:02:24.2]} 14... h6 {[%clk 0:01:44.1]} 15. Nd4
{[%clk 0:02:14.5]} 15... Ba4 {[%clk 0:01:36.5]} 16. Bb5+ {[%clk 0:01:31.9]}
16... Bxb5 {[%clk 0:01:36.2]} 17. Nxb5 {[%clk 0:01:31.7]} 17... O-O {[%clk
0:01:35.4]} 18. Be3 {[%clk 0:01:05.7]} 18... a6 {[%clk 0:01:35.3]} 19. Rd7
{[%clk 0:00:53.8]} 19... Nc6 {[%clk 0:00:59.5]} 20. Nd4 {[%clk 0:00:34]} 20...
Bg5 {[%clk 0:00:30.2]} 21. f4 {[%clk 0:00:28.8]} 21... Nxe5 {[%clk 0:00:26.5]}
22. Rdxb7 {[%clk 0:00:22]} 22... Nc4 {[%clk 0:00:26.8]} 23. fxg5 {[%clk
0:00:09.6]} 23... Nxe3 {[%clk 0:00:26.3]} 24. gxh6 {[%clk 0:00:10.5]} 24... gxh6
{[%clk 0:00:27.2]} 25. Rc7 {[%clk 0:00:07.5]} 25... Nd5 {[%clk 0:00:26.6]} 26.
Rc5 {[%clk 0:00:07.7]} 26... Rac8 {[%clk 0:00:25.3]} 27. Rxc8 {[%clk 0:00:04]}
27... Rxc8 {[%clk 0:00:26.2]} 0-1

[Event "*** Titled Tuesday Blitz"]
[Site "Chess.com"]
[Date "2020.05.12"]
[Round "10"]
[White "PhileKhoob"]
[Black "narutosmith"]
[Result "1-0"]
[WhiteElo "2440"]
[BlackElo "2279"]
[TimeControl "180+1"]
[EndTime "11:53:17 PDT"]
[Termination "PhileKhoob won on time"]

1. e4 {[%clk 0:03:00.9]} 1... c5 {[%clk 0:02:59.9]} 2. Nf3 {[%clk 0:02:59.5]}
2... e6 {[%clk 0:02:59.8]} 3. d4 {[%clk 0:02:59.7]} 3... cxd4 {[%clk 0:03:00.7]}
4. Nxd4 {[%clk 0:03:00.5]} 4... Nc6 {[%clk 0:03:01.4]} 5. Nc3 {[%clk 0:03:00]}
5... Qc7 {[%clk 0:03:02]} 6. Be3 {[%clk 0:03:00.5]} 6... a6 {[%clk 0:03:02.5]}
7. Qd2 {[%clk 0:03:00.9]} 7... Nf6 {[%clk 0:03:03.1]} 8. O-O-O {[%clk
0:03:01.1]} 8... Be7 {[%clk 0:03:02.9]} 9. f3 {[%clk 0:03:01.1]} 9... b5 {[%clk
0:02:59.6]} 10. g4 {[%clk 0:03:01.3]} 10... Nxd4 {[%clk 0:02:57.8]} 11. Bxd4
{[%clk 0:03:00.9]} 11... Bb7 {[%clk 0:02:58.4]} 12. h4 {[%clk 0:02:52.7]} 12...
Rc8 {[%clk 0:02:54.4]} 13. Bd3 {[%clk 0:02:47.2]} 13... b4 {[%clk 0:02:18]} 14.
Na4 {[%clk 0:02:35.8]} 14... Bc6 {[%clk 0:02:08.5]} 15. Nb6 {[%clk 0:02:28.5]}
15... Rb8 {[%clk 0:02:07.7]} 16. Qf2 {[%clk 0:02:27.9]} 16... d5 {[%clk
0:00:51.9]} 17. g5 {[%clk 0:01:59.7]} 17... Nh5 {[%clk 0:00:34.4]} 18. exd5
{[%clk 0:01:57.3]} 18... exd5 {[%clk 0:00:34.3]} 19. Rhe1 {[%clk 0:01:04]} 19...
O-O {[%clk 0:00:34.5]} 20. Kb1 {[%clk 0:01:04.6]} 20... Bd6 {[%clk 0:00:32.8]}
21. Qg1 {[%clk 0:00:59.7]} 21... Nf4 {[%clk 0:00:28.5]} 22. h5 {[%clk
0:00:53.4]} 22... Ne6 {[%clk 0:00:10.8]} 23. Bf2 {[%clk 0:00:51.6]} 23... d4
{[%clk 0:00:09.6]} 24. Nc4 {[%clk 0:00:50.6]} 24... Bxf3 {[%clk 0:00:08.6]} 25.
Be2 {[%clk 0:00:50]} 25... Bxe2 {[%clk 0:00:08.1]} 26. Rxe2 {[%clk 0:00:50.9]}
26... Qxc4 {[%clk 0:00:08.3]} 27. Rde1 {[%clk 0:00:51.5]} 27... Bf4 {[%clk
0:00:08]} 28. b3 {[%clk 0:00:51.3]} 28... Qc3 {[%clk 0:00:07.9]} 29. g6 {[%clk
0:00:50.5]} 29... fxg6 {[%clk 0:00:07.6]} 30. hxg6 {[%clk 0:00:50.5]} 30... Ng5
{[%clk 0:00:07.4]} 31. Bxd4 {[%clk 0:00:48.9]} 31... Qc6 {[%clk 0:00:05.7]} 32.
gxh7+ {[%clk 0:00:49]} 32... Kh8 {[%clk 0:00:03.6]} 33. Re7 {[%clk 0:00:49.1]}
33... Rf7 {[%clk 0:00:03.2]} 34. Rxf7 {[%clk 0:00:48.8]} 34... Qh6 {[%clk
0:00:01.2]} 35. Bxg7+ {[%clk 0:00:47.2]} 1-0

[Event "*** Titled Tuesday Blitz"]
[Site "Chess.com"]
[Date "2020.05.12"]
[Round "10"]
[White "ZarinaShafigullina"]
[Black "bazar-wokzal"]
[Result "1-0"]
[WhiteElo "2343"]
[BlackElo "2517"]
[TimeControl "180+1"]
[EndTime "11:53:21 PDT"]
[Termination "ZarinaShafigullina won by resignation"]

1. d4 {[%clk 0:03:00.9]} 1... Nf6 {[%clk 0:02:59.1]} 2. Nf3 {[%clk 0:03:01.8]}
2... e6 {[%clk 0:02:58.9]} 3. g3 {[%clk 0:03:02.1]} 3... b5 {[%clk 0:02:58.2]}
4. Bg2 {[%clk 0:03:02.3]} 4... Bb7 {[%clk 0:02:56.8]} 5. O-O {[%clk 0:03:02.6]}
5... c5 {[%clk 0:02:55.5]} 6. a4 {[%clk 0:02:59.5]} 6... b4 {[%clk 0:02:55]} 7.
c4 {[%clk 0:02:57.8]} 7... bxc3 {[%clk 0:02:54.1]} 8. bxc3 {[%clk 0:02:55.6]}
8... Na6 {[%clk 0:02:54.1]} 9. Na3 {[%clk 0:02:50.8]} 9... Be7 {[%clk
0:02:52.8]} 10. Nb5 {[%clk 0:02:42]} 10... O-O {[%clk 0:02:50.9]} 11. Ba3 {[%clk
0:02:40.9]} 11... cxd4 {[%clk 0:02:46.1]} 12. cxd4 {[%clk 0:02:38.5]} 12... Nb4
{[%clk 0:02:42]} 13. Qb3 {[%clk 0:02:29.9]} 13... a5 {[%clk 0:02:41.1]} 14. Rac1
{[%clk 0:02:25.1]} 14... Rc8 {[%clk 0:02:33.2]} 15. Ne5 {[%clk 0:02:24.1]} 15...
Bxg2 {[%clk 0:02:31.8]} 16. Kxg2 {[%clk 0:02:23.7]} 16... Qb6 {[%clk 0:02:29.3]}
17. Kg1 {[%clk 0:01:59.6]} 17... Qb7 {[%clk 0:02:16.7]} 18. Nc4 {[%clk
0:01:54.8]} 18... Qa8 {[%clk 0:02:09.1]} 19. Nb6 {[%clk 0:01:53.2]} 19... Rxc1
{[%clk 0:02:06.9]} 20. Nxa8 {[%clk 0:01:52.7]} 20... Rxf1+ {[%clk 0:02:05.9]}
21. Kxf1 {[%clk 0:01:52.6]} 21... Rxa8 {[%clk 0:02:06.2]} 22. Qc4 {[%clk
0:01:53.2]} 22... h5 {[%clk 0:01:54.1]} 23. Qc7 {[%clk 0:01:50.9]} 23... h4
{[%clk 0:01:45.1]} 24. gxh4 {[%clk 0:01:45.9]} 24... g6 {[%clk 0:01:32.1]} 25.
f3 {[%clk 0:01:35.1]} 25... Kg7 {[%clk 0:01:29.3]} 26. e4 {[%clk 0:01:34.3]}
26... Rd8 {[%clk 0:01:17.1]} 27. Qxa5 {[%clk 0:01:33.1]} 27... Nc6 {[%clk
0:01:16.9]} 28. Qc3 {[%clk 0:01:31.1]} 28... Bxa3 {[%clk 0:01:14.5]} 29. Qxa3
{[%clk 0:01:19.5]} 29... Ra8 {[%clk 0:01:08.3]} 30. Ke2 {[%clk 0:01:16]} 30...
Na5 {[%clk 0:00:53.1]} 31. Kd3 {[%clk 0:01:13.1]} 31... d5 {[%clk 0:00:52.2]}
32. e5 {[%clk 0:01:09.2]} 32... Nh5 {[%clk 0:00:50.1]} 33. Nd6 {[%clk
0:01:05.5]} 33... Rb8 {[%clk 0:00:46.3]} 34. Qc5 {[%clk 0:01:02.9]} 34... Nb3
{[%clk 0:00:28.6]} 35. Qc7 {[%clk 0:01:00.9]} 35... Rb4 {[%clk 0:00:28.5]} 36.
Qxf7+ {[%clk 0:01:00.4]} 36... Kh6 {[%clk 0:00:28.7]} 37. Qf8+ {[%clk
0:00:58.7]} 37... Kh7 {[%clk 0:00:27.8]} 38. Qe7+ {[%clk 0:00:54.8]} 38... Ng7
{[%clk 0:00:26.9]} 39. Kc3 {[%clk 0:00:50.4]} 39... Rxa4 {[%clk 0:00:17.5]} 40.
Kxb3 {[%clk 0:00:48.7]} 40... Rxd4 {[%clk 0:00:17.3]} 41. Ne8 {[%clk 0:00:47.7]}
1-0